[Event "*** Biggest EVER Titled Tuesday"]
[Site "Chess.com"]
[Date "2018.04.17"]
[Round "7"]
[White "GadimbayliA"]
[Black "pulvettd"]
[Result "1/2-1/2"]
[WhiteElo "2428"]
[BlackElo "2543"]
[TimeControl "180+2"]
[EndTime "14:39:59 PDT"]
[Termination "Game drawn by repetition"]

1. e4 {[%clk 0:03:01.9]} 1... c5 {[%clk 0:03:00.8]} 2. Nf3 {[%clk 0:03:02.2]}
2... d6 {[%clk 0:03:02.2]} 3. d4 {[%clk 0:03:03.5]} 3... cxd4 {[%clk 0:03:03.8]}
4. Nxd4 {[%clk 0:03:05]} 4... Nf6 {[%clk 0:03:05.3]} 5. Nc3 {[%clk 0:03:06.5]}
5... a6 {[%clk 0:03:06.4]} 6. Qd3 {[%clk 0:03:07.9]} 6... Nc6 {[%clk 0:03:02.2]}
7. Bg5 {[%clk 0:03:02.5]} 7... Bd7 {[%clk 0:02:45.6]} 8. Be2 {[%clk 0:02:55.3]}
8... Rc8 {[%clk 0:02:44.2]} 9. Nxc6 {[%clk 0:02:51.6]} 9... Rxc6 {[%clk
0:02:32.7]} 10. Rd1 {[%clk 0:02:35.5]} 10... Qb6 {[%clk 0:02:24.8]} 11. O-O
{[%clk 0:01:18.9]} 11... Qxb2 {[%clk 0:02:07.4]} 12. Bd2 {[%clk 0:01:19.2]}
12... Qa3 {[%clk 0:02:04.5]} 13. e5 {[%clk 0:01:12.5]} 13... dxe5 {[%clk
0:02:00.1]} 14. Bf3 {[%clk 0:01:12.5]} 14... Rd6 {[%clk 0:00:59.6]} 15. Qe2
{[%clk 0:01:07]} 15... Bc6 {[%clk 0:00:56.8]} 16. Bxc6+ {[%clk 0:00:57.7]} 16...
Rxc6 {[%clk 0:00:58.7]} 17. Qxe5 {[%clk 0:00:49]} 17... Qd6 {[%clk 0:00:59.3]}
18. Qa5 {[%clk 0:00:49.5]} 18... Qc7 {[%clk 0:00:56.4]} 19. Qa4 {[%clk 0:00:27]}
19... e6 {[%clk 0:00:55]} 20. Bf4 {[%clk 0:00:23.9]} 20... Qc8 {[%clk 0:00:56]}
21. Ne2 {[%clk 0:00:19.5]} 21... b5 {[%clk 0:00:54.8]} 22. Qb3 {[%clk 0:00:20]}
22... Be7 {[%clk 0:00:54.7]} 23. Nd4 {[%clk 0:00:21.2]} 23... Rc3 {[%clk
0:00:54.7]} 24. Qb2 {[%clk 0:00:20.6]} 24... O-O {[%clk 0:00:54.8]} 25. Rfe1
{[%clk 0:00:19.5]} 25... Re8 {[%clk 0:00:49.7]} 26. Be5 {[%clk 0:00:20.1]} 26...
Rc4 {[%clk 0:00:48.9]} 27. Rd3 {[%clk 0:00:20.9]} 27... g6 {[%clk 0:00:33.4]}
28. Nxb5 {[%clk 0:00:08.4]} 28... Rxc2 {[%clk 0:00:31.4]} 29. Qa1 {[%clk
0:00:08.7]} 29... axb5 {[%clk 0:00:27.4]} 30. Bxf6 {[%clk 0:00:09.9]} 30... Bxf6
{[%clk 0:00:29.3]} 31. Qxf6 {[%clk 0:00:11.2]} 31... Rc1 {[%clk 0:00:31.2]} 32.
Re3 {[%clk 0:00:12.6]} 32... Qc5 {[%clk 0:00:27.2]} 33. Qf3 {[%clk 0:00:09.5]}
33... Rd8 {[%clk 0:00:21.5]} 34. h3 {[%clk 0:00:10.2]} 34... Rxe1+ {[%clk
0:00:16.1]} 35. Rxe1 {[%clk 0:00:10.9]} 35... Qd5 {[%clk 0:00:18]} 36. Qxd5
{[%clk 0:00:10.9]} 36... Rxd5 {[%clk 0:00:19.9]} 37. Rb1 {[%clk 0:00:12.4]}
37... Kf8 {[%clk 0:00:19.1]} 38. g3 {[%clk 0:00:13.8]} 38... Ke7 {[%clk
0:00:19.8]} 39. Rb4 {[%clk 0:00:15.4]} 39... Kd6 {[%clk 0:00:17]} 40. a4 {[%clk
0:00:14.6]} 40... Kc6 {[%clk 0:00:17.5]} 41. axb5+ {[%clk 0:00:15.3]} 41... Rxb5
{[%clk 0:00:17.4]} 42. Rf4 {[%clk 0:00:16.3]} 42... f5 {[%clk 0:00:17.3]} 43. h4
{[%clk 0:00:15.5]} 43... e5 {[%clk 0:00:17.2]} 44. Ra4 {[%clk 0:00:16.5]} 44...
Rb7 {[%clk 0:00:16.6]} 45. Ra8 {[%clk 0:00:17.1]} 45... Kd5 {[%clk 0:00:15.2]}
46. Kg2 {[%clk 0:00:18]} 46... Ke6 {[%clk 0:00:13.9]} 47. Re8+ {[%clk
0:00:18.9]} 47... Kf6 {[%clk 0:00:14.8]} 48. Rf8+ {[%clk 0:00:20.1]} 48... Rf7
{[%clk 0:00:14.8]} 49. Rc8 {[%clk 0:00:20.5]} 49... Re7 {[%clk 0:00:15.3]} 50.
Rf8+ {[%clk 0:00:21.4]} 50... Rf7 {[%clk 0:00:16.3]} 51. Rd8 {[%clk 0:00:22.9]}
51... Re7 {[%clk 0:00:18.2]} 52. Rf8+ {[%clk 0:00:23.8]} 52... Kg7 {[%clk
0:00:19.7]} 53. Rd8 {[%clk 0:00:24.9]} 53... h6 {[%clk 0:00:20.8]} 54. Rc8
{[%clk 0:00:25.7]} 54... Kf6 {[%clk 0:00:21.8]} 55. Rc6+ {[%clk 0:00:26.1]}
55... Kg7 {[%clk 0:00:22.2]} 56. Rc8 {[%clk 0:00:27.1]} 56... g5 {[%clk
0:00:22.5]} 57. hxg5 {[%clk 0:00:27.6]} 57... hxg5 {[%clk 0:00:24.4]} 58. Rc6
{[%clk 0:00:29.1]} 58... Kf7 {[%clk 0:00:24.9]} 59. Rh6 {[%clk 0:00:28.7]} 59...
Re6 {[%clk 0:00:25.5]} 60. Rh7+ {[%clk 0:00:30.1]} 60... Kg6 {[%clk 0:00:26.5]}
61. Ra7 {[%clk 0:00:31.1]} 61... Rf6 {[%clk 0:00:27.9]} 62. Re7 {[%clk
0:00:30.7]} 62... Rf7 {[%clk 0:00:28.2]} 63. Rxe5 {[%clk 0:00:31.3]} 63... Rf6
{[%clk 0:00:27.6]} 64. Rb5 {[%clk 0:00:32.2]} 64... Rf7 {[%clk 0:00:27.4]} 65.
Kf3 {[%clk 0:00:33.5]} 65... Rf6 {[%clk 0:00:22.4]} 66. Rc5 {[%clk 0:00:34.2]}
66... Ra6 {[%clk 0:00:21.9]} 67. Kg2 {[%clk 0:00:34.4]} 67... Rf6 {[%clk
0:00:22.5]} 68. Kf3 {[%clk 0:00:35.7]} 68... Ra6 {[%clk 0:00:23.4]} 69. Ke3
{[%clk 0:00:37]} 69... Re6+ {[%clk 0:00:23.6]} 70. Kf3 {[%clk 0:00:36.8]} 70...
Ra6 {[%clk 0:00:24.3]} 71. Kg2 {[%clk 0:00:38]} 71... Rf6 {[%clk 0:00:25.3]} 72.
Kf3 {[%clk 0:00:37.8]} 1/2-1/2

[Event "*** Biggest EVER Titled Tuesday"]
[Site "Chess.com"]
[Date "2018.04.17"]
[Round "7"]
[White "Vugar_Manafov"]
[Black "VeraNebolsina"]
[Result "0-1"]
[WhiteElo "2312"]
[BlackElo "2495"]
[TimeControl "180+2"]
[EndTime "14:40:00 PDT"]
[Termination "VeraNebolsina won by checkmate"]

1. Nf3 {[%clk 0:03:00.9]} 1... Nf6 {[%clk 0:03:00.1]} 2. g3 {[%clk 0:03:00.2]}
2... g6 {[%clk 0:03:00.7]} 3. b3 {[%clk 0:03:01.3]} 3... Bg7 {[%clk 0:03:01]} 4.
Bb2 {[%clk 0:03:01.4]} 4... d6 {[%clk 0:03:01.8]} 5. d4 {[%clk 0:03:01.1]} 5...
O-O {[%clk 0:03:02.7]} 6. Bg2 {[%clk 0:02:59.5]} 6... e5 {[%clk 0:03:01]} 7.
dxe5 {[%clk 0:02:57.5]} 7... Ng4 {[%clk 0:03:01.6]} 8. O-O {[%clk 0:02:58.6]}
8... Nd7 {[%clk 0:02:26.4]} 9. c4 {[%clk 0:02:58]} 9... dxe5 {[%clk 0:02:21]}
10. h3 {[%clk 0:02:28.7]} 10... Nh6 {[%clk 0:02:18.8]} 11. Ba3 {[%clk
0:02:19.6]} 11... Re8 {[%clk 0:02:18.7]} 12. Nc3 {[%clk 0:02:16.9]} 12... e4
{[%clk 0:02:02.7]} 13. Nd4 {[%clk 0:02:15.5]} 13... c5 {[%clk 0:02:02.9]} 14.
Ndb5 {[%clk 0:01:49.8]} 14... a6 {[%clk 0:02:03.2]} 15. Nd6 {[%clk 0:01:45.5]}
15... Bxc3 {[%clk 0:01:58.3]} 16. Rc1 {[%clk 0:01:44.7]} 16... Bg7 {[%clk
0:01:45.6]} 17. Nxe8 {[%clk 0:01:38.6]} 17... Qxe8 {[%clk 0:01:46.6]} 18. Qd5
{[%clk 0:01:38.4]} 18... Rb8 {[%clk 0:01:28.9]} 19. Qxe4 {[%clk 0:01:34.9]}
19... Qxe4 {[%clk 0:01:23.5]} 20. Bxe4 {[%clk 0:01:36.8]} 20... b6 {[%clk
0:01:21.8]} 21. Rfd1 {[%clk 0:01:35.9]} 21... Nf5 {[%clk 0:01:08.3]} 22. Bxf5
{[%clk 0:01:08.6]} 22... gxf5 {[%clk 0:01:08.7]} 23. Rd5 {[%clk 0:01:09.8]}
23... Nf8 {[%clk 0:01:04.4]} 24. Rd8 {[%clk 0:01:07.5]} 24... Bf6 {[%clk
0:01:04.8]} 25. Re8 {[%clk 0:01:03.5]} 25... Kg7 {[%clk 0:00:51.8]} 26. b4
{[%clk 0:00:57]} 26... Ne6 {[%clk 0:00:49.4]} 27. Rb1 {[%clk 0:00:41.5]} 27...
Nc7 {[%clk 0:00:45]} 28. Re3 {[%clk 0:00:36.4]} 28... Bd4 {[%clk 0:00:43.4]} 29.
Rd3 {[%clk 0:00:31.6]} 29... f4 {[%clk 0:00:39.3]} 30. g4 {[%clk 0:00:31.1]}
30... Bb7 {[%clk 0:00:30.6]} 31. bxc5 {[%clk 0:00:27.2]} 31... Be4 {[%clk
0:00:28.2]} 32. Rxd4 {[%clk 0:00:20.9]} 32... Bxb1 {[%clk 0:00:27.7]} 33. Rd1
{[%clk 0:00:18.8]} 33... Bxa2 {[%clk 0:00:26.3]} 34. Bb2+ {[%clk 0:00:19]} 34...
Kf8 {[%clk 0:00:18.7]} 35. Be5 {[%clk 0:00:17.9]} 35... bxc5 {[%clk 0:00:05.6]}
36. Bxc7 {[%clk 0:00:18.1]} 36... Rb2 {[%clk 0:00:04.7]} 37. Bxf4 {[%clk
0:00:15.3]} 37... Bxc4 {[%clk 0:00:05.1]} 38. e3 {[%clk 0:00:13]} 38... Ke8
{[%clk 0:00:04.6]} 39. Bd6 {[%clk 0:00:10]} 39... Rb5 {[%clk 0:00:04.9]} 40. Ra1
{[%clk 0:00:08.8]} 40... Rb6 {[%clk 0:00:03.7]} 41. Bxc5 {[%clk 0:00:08.7]}
41... Rh6 {[%clk 0:00:05.3]} 42. Kh2 {[%clk 0:00:08.4]} 42... Rf6 {[%clk
0:00:06.7]} 43. Kg3 {[%clk 0:00:08.4]} 43... Rc6 {[%clk 0:00:07.8]} 44. Bd4
{[%clk 0:00:09.2]} 44... Bd5 {[%clk 0:00:08.7]} 45. f4 {[%clk 0:00:10.5]} 45...
Rc2 {[%clk 0:00:09.7]} 46. Ra5 {[%clk 0:00:11.5]} 46... Bb7 {[%clk 0:00:09]} 47.
f5 {[%clk 0:00:11.3]} 47... Rg2+ {[%clk 0:00:09]} 48. Kf4 {[%clk 0:00:12.4]}
48... Kd7 {[%clk 0:00:09.8]} 49. Ke5 {[%clk 0:00:08.9]} 49... Rh2 {[%clk
0:00:10.4]} 50. Kf6 {[%clk 0:00:07.7]} 50... Rxh3 {[%clk 0:00:11.1]} 51. Kxf7
{[%clk 0:00:08.8]} 51... Rg3 {[%clk 0:00:11.6]} 52. f6 {[%clk 0:00:07.4]} 52...
Rxg4 {[%clk 0:00:12.5]} 53. Re5 {[%clk 0:00:08.6]} 53... Kd6 {[%clk 0:00:11.1]}
54. Re7 {[%clk 0:00:09.5]} 54... Bd5+ {[%clk 0:00:12.1]} 55. Kf8 {[%clk
0:00:09.5]} 55... Rg8# {[%clk 0:00:12.9]} 0-1

[Event "*** Biggest EVER Titled Tuesday"]
[Site "Chess.com"]
[Date "2018.04.17"]
[Round "7"]
[White "wadsy27"]
[Black "Indianlad"]
[Result "1-0"]
[WhiteElo "2156"]
[BlackElo "2658"]
[TimeControl "180+2"]
[EndTime "14:40:03 PDT"]
[Termination "wadsy27 won on time"]

1. g3 {[%clk 0:02:58.3]} 1... h5 {[%clk 0:02:59.7]} 2. Nf3 {[%clk 0:02:58.7]}
2... d5 {[%clk 0:02:59]} 3. Bg2 {[%clk 0:02:56.6]} 3... Nc6 {[%clk 0:02:58.7]}
4. d4 {[%clk 0:02:57.3]} 4... Bf5 {[%clk 0:02:58.9]} 5. c3 {[%clk 0:02:51]} 5...
e6 {[%clk 0:02:59]} 6. Qb3 {[%clk 0:02:42.8]} 6... Rb8 {[%clk 0:02:58.7]} 7. h4
{[%clk 0:02:36.4]} 7... Nf6 {[%clk 0:02:56.8]} 8. Bg5 {[%clk 0:02:37.2]} 8...
Be7 {[%clk 0:02:57]} 9. Nbd2 {[%clk 0:02:37.6]} 9... Ne4 {[%clk 0:02:58.1]} 10.
Bxe7 {[%clk 0:02:22.7]} 10... Qxe7 {[%clk 0:02:59.7]} 11. Nxe4 {[%clk
0:02:18.4]} 11... Bxe4 {[%clk 0:03:01.6]} 12. O-O {[%clk 0:02:11.6]} 12... Bxf3
{[%clk 0:03:02.3]} 13. exf3 {[%clk 0:02:02.6]} 13... g5 {[%clk 0:02:59.4]} 14.
hxg5 {[%clk 0:02:03.2]} 14... Qxg5 {[%clk 0:03:01.3]} 15. f4 {[%clk 0:02:04.5]}
15... Qf6 {[%clk 0:03:02.8]} 16. Rae1 {[%clk 0:01:47.1]} 16... Kf8 {[%clk
0:03:01.3]} 17. Qd1 {[%clk 0:01:20.7]} 17... h4 {[%clk 0:03:01.4]} 18. Qg4
{[%clk 0:01:19.3]} 18... Ne7 {[%clk 0:03:00.9]} 19. Qg5 {[%clk 0:00:59.5]} 19...
Qxg5 {[%clk 0:03:00.7]} 20. fxg5 {[%clk 0:01:00.6]} 20... hxg3 {[%clk
0:03:02.6]} 21. fxg3 {[%clk 0:01:01.6]} 21... Kg7 {[%clk 0:03:03.3]} 22. Bf3
{[%clk 0:00:39.8]} 22... Rh7 {[%clk 0:02:59.4]} 23. Kf2 {[%clk 0:00:25.1]} 23...
Rbh8 {[%clk 0:02:59.6]} 24. g4 {[%clk 0:00:24.1]} 24... Rh2+ {[%clk 0:03:00.3]}
25. Bg2 {[%clk 0:00:25.1]} 25... R8h3 {[%clk 0:02:51]} 26. Kg1 {[%clk
0:00:17.8]} 26... Rh7 {[%clk 0:02:49.1]} 27. Rf6 {[%clk 0:00:16.8]} 27... Ng6
{[%clk 0:02:39.5]} 28. Ref1 {[%clk 0:00:16.7]} 28... Nh8 {[%clk 0:02:40.8]} 29.
g6 {[%clk 0:00:15]} 29... fxg6 {[%clk 0:02:32.7]} 30. Rxe6 {[%clk 0:00:15]}
30... R2h4 {[%clk 0:02:33.9]} 31. g5 {[%clk 0:00:11.8]} 31... Nf7 {[%clk
0:02:22.9]} 32. Re7 {[%clk 0:00:09.6]} 32... Kf8 {[%clk 0:02:23.8]} 33. Rxc7
{[%clk 0:00:10]} 33... Rg4 {[%clk 0:02:25.3]} 34. Rxb7 {[%clk 0:00:09.1]} 34...
Rxg5 {[%clk 0:02:24.5]} 35. Rxa7 {[%clk 0:00:08.4]} 35... Rg7 {[%clk 0:02:20.4]}
36. Rf2 {[%clk 0:00:09]} 36... Kg8 {[%clk 0:02:21.2]} 37. Kf1 {[%clk 0:00:07.9]}
37... Nd6 {[%clk 0:02:22.4]} 38. Rxg7+ {[%clk 0:00:08]} 38... Kxg7 {[%clk
0:02:24.3]} 39. a4 {[%clk 0:00:08.7]} 39... Nc4 {[%clk 0:02:25.8]} 40. b3 {[%clk
0:00:07.1]} 40... Na5 {[%clk 0:02:27]} 41. b4 {[%clk 0:00:07.6]} 41... Nc4
{[%clk 0:02:28.5]} 42. Bf3 {[%clk 0:00:06.6]} 42... Rg3 {[%clk 0:02:27.3]} 43.
a5 {[%clk 0:00:06.5]} 43... Rh3 {[%clk 0:02:25.2]} 44. Kg2 {[%clk 0:00:07.3]}
44... Rh8 {[%clk 0:02:25.7]} 45. Re2 {[%clk 0:00:08.2]} 45... Rd8 {[%clk
0:02:24.9]} 46. a6 {[%clk 0:00:07.4]} 46... Kf6 {[%clk 0:02:26.3]} 47. a7 {[%clk
0:00:06.2]} 47... Nb6 {[%clk 0:02:26.6]} 48. Bg4 {[%clk 0:00:04.8]} 48... Kg5
{[%clk 0:02:25.4]} 49. Kg3 {[%clk 0:00:05.3]} 49... Ra8 {[%clk 0:02:20]} 50.
Re5+ {[%clk 0:00:05.7]} 50... Kh6 {[%clk 0:02:20]} 51. Re6 {[%clk 0:00:05.8]}
51... Na4 {[%clk 0:02:21.5]} 52. Ra6 {[%clk 0:00:05.6]} 52... Nxc3 {[%clk
0:02:22.4]} 53. Bd7 {[%clk 0:00:04.3]} 53... Ne2+ {[%clk 0:02:20.2]} 54. Kf2
{[%clk 0:00:04.5]} 54... Nxd4 {[%clk 0:02:21.7]} 55. b5 {[%clk 0:00:05.7]} 55...
Kg7 {[%clk 0:02:19]} 56. b6 {[%clk 0:00:06.5]} 1-0

[Event "*** Biggest EVER Titled Tuesday"]
[Site "Chess.com"]
[Date "2018.04.17"]
[Round "7"]
[White "JustKid"]
[Black "dretch"]
[Result "1/2-1/2"]
[WhiteElo "2480"]
[BlackElo "2698"]
[TimeControl "180+2"]
[EndTime "14:40:14 PDT"]
[Termination "Game drawn by stalemate"]

1. d4 {[%clk 0:03:01.9]} 1... d5 {[%clk 0:03:00.8]} 2. Bf4 {[%clk 0:03:00]} 2...
c5 {[%clk 0:03:00.2]} 3. e3 {[%clk 0:03:01.4]} 3... Nc6 {[%clk 0:02:59.7]} 4.
Nf3 {[%clk 0:03:00]} 4... Nf6 {[%clk 0:03:00.7]} 5. Be2 {[%clk 0:02:59.5]} 5...
Bg4 {[%clk 0:02:54]} 6. O-O {[%clk 0:02:49.4]} 6... e6 {[%clk 0:02:52.3]} 7.
Nbd2 {[%clk 0:02:43.2]} 7... cxd4 {[%clk 0:02:42.6]} 8. exd4 {[%clk 0:02:44]}
8... Be7 {[%clk 0:02:42.7]} 9. c3 {[%clk 0:02:44.7]} 9... O-O {[%clk 0:02:39.2]}
10. Ne1 {[%clk 0:02:35.8]} 10... Bxe2 {[%clk 0:02:38.5]} 11. Qxe2 {[%clk
0:02:37.7]} 11... Qb6 {[%clk 0:02:34.3]} 12. Nd3 {[%clk 0:02:37.4]} 12... Qa6
{[%clk 0:02:29.2]} 13. Qf3 {[%clk 0:02:34.1]} 13... Nd7 {[%clk 0:02:26.5]} 14.
Rfe1 {[%clk 0:02:25.5]} 14... Rac8 {[%clk 0:02:25.3]} 15. Qg3 {[%clk 0:02:18.1]}
15... Rfe8 {[%clk 0:02:23.9]} 16. Re3 {[%clk 0:02:03.9]} 16... Bf8 {[%clk
0:02:18.1]} 17. Qh3 {[%clk 0:01:42.3]} 17... Ne7 {[%clk 0:02:15.8]} 18. Nb3
{[%clk 0:01:30.2]} 18... Ng6 {[%clk 0:02:11.1]} 19. Bg3 {[%clk 0:01:27.8]} 19...
Qa4 {[%clk 0:02:07.1]} 20. Qh5 {[%clk 0:01:21]} 20... Nf6 {[%clk 0:02:03.3]} 21.
Qe2 {[%clk 0:01:18.2]} 21... Ne4 {[%clk 0:02:03.7]} 22. f3 {[%clk 0:01:05.4]}
22... Nd6 {[%clk 0:00:48.6]} 23. Bxd6 {[%clk 0:00:55.5]} 23... Bxd6 {[%clk
0:00:49.1]} 24. g3 {[%clk 0:00:53.4]} 24... b6 {[%clk 0:00:45.6]} 25. f4 {[%clk
0:00:36.8]} 25... Qb5 {[%clk 0:00:38.5]} 26. Ne5 {[%clk 0:00:26.3]} 26... Qxe2
{[%clk 0:00:39]} 27. Rxe2 {[%clk 0:00:28.2]} 27... Ne7 {[%clk 0:00:39.3]} 28. a4
{[%clk 0:00:26.7]} 28... Rc7 {[%clk 0:00:37.5]} 29. a5 {[%clk 0:00:25.6]} 29...
b5 {[%clk 0:00:34.6]} 30. Nd3 {[%clk 0:00:25.6]} 30... Nc6 {[%clk 0:00:33.2]}
31. Nbc5 {[%clk 0:00:26]} 31... Bxc5 {[%clk 0:00:27.1]} 32. Nxc5 {[%clk
0:00:26.9]} 32... b4 {[%clk 0:00:28.5]} 33. a6 {[%clk 0:00:18.2]} 33... Rb8
{[%clk 0:00:24.2]} 34. Kf2 {[%clk 0:00:17.4]} 34... bxc3 {[%clk 0:00:20.1]} 35.
bxc3 {[%clk 0:00:19.3]} 35... Ne7 {[%clk 0:00:20.8]} 36. Raa2 {[%clk 0:00:18.5]}
36... Rb6 {[%clk 0:00:16.8]} 37. Reb2 {[%clk 0:00:18.7]} 37... Nc8 {[%clk
0:00:16.6]} 38. Ke3 {[%clk 0:00:13.1]} 38... Kf8 {[%clk 0:00:16.8]} 39. Kd3
{[%clk 0:00:11.2]} 39... Ke7 {[%clk 0:00:17.6]} 40. g4 {[%clk 0:00:12.6]} 40...
Rcc6 {[%clk 0:00:15.3]} 41. f5 {[%clk 0:00:08.4]} 41... exf5 {[%clk 0:00:15.4]}
42. gxf5 {[%clk 0:00:10.3]} 42... Rxb2 {[%clk 0:00:13.6]} 43. Rxb2 {[%clk
0:00:11.6]} 43... Nb6 {[%clk 0:00:14.3]} 44. Re2+ {[%clk 0:00:12.6]} 44... Kf6
{[%clk 0:00:14]} 45. Re8 {[%clk 0:00:13.3]} 45... Kxf5 {[%clk 0:00:13.8]} 46.
Rb8 {[%clk 0:00:12.7]} 46... Kg4 {[%clk 0:00:13.4]} 47. Rb7 {[%clk 0:00:14]}
47... Nc8 {[%clk 0:00:13.2]} 48. Rxf7 {[%clk 0:00:14.9]} 48... Rg6 {[%clk
0:00:13.8]} 49. c4 {[%clk 0:00:15.2]} 49... dxc4+ {[%clk 0:00:13.8]} 50. Kc3
{[%clk 0:00:16.8]} 50... Nd6 {[%clk 0:00:13.9]} 51. Rd7 {[%clk 0:00:16.6]} 51...
Kh3 {[%clk 0:00:14.4]} 52. d5 {[%clk 0:00:17.1]} 52... Kxh2 {[%clk 0:00:15.1]}
53. Ne6 {[%clk 0:00:18.6]} 53... Ne4+ {[%clk 0:00:14.7]} 54. Kxc4 {[%clk
0:00:18.4]} 54... Rg4 {[%clk 0:00:14.9]} 55. Kb5 {[%clk 0:00:18.8]} 55... Nc3+
{[%clk 0:00:16]} 56. Kc6 {[%clk 0:00:19.9]} 56... Rc4+ {[%clk 0:00:16.6]} 57.
Kd6 {[%clk 0:00:21.4]} 57... Nb5+ {[%clk 0:00:16.9]} 58. Ke5 {[%clk 0:00:18.1]}
58... h5 {[%clk 0:00:17.9]} 59. Rxg7 {[%clk 0:00:19.2]} 59... h4 {[%clk
0:00:19.1]} 60. d6 {[%clk 0:00:20.5]} 60... Nxd6 {[%clk 0:00:12.8]} 61. Kxd6
{[%clk 0:00:21.8]} 61... Ra4 {[%clk 0:00:12.2]} 62. Nc5 {[%clk 0:00:23.1]} 62...
Rd4+ {[%clk 0:00:07.5]} 63. Kc6 {[%clk 0:00:24.4]} 63... h3 {[%clk 0:00:08]} 64.
Kb7 {[%clk 0:00:22.8]} 64... Kh1 {[%clk 0:00:09]} 65. Kxa7 {[%clk 0:00:21.7]}
65... h2 {[%clk 0:00:09.8]} 66. Rh7 {[%clk 0:00:20.2]} 66... Kg2 {[%clk
0:00:09.9]} 67. Rg7+ {[%clk 0:00:17.8]} 67... Kh1 {[%clk 0:00:10.4]} 68. Kb7
{[%clk 0:00:09.9]} 68... Rg4 {[%clk 0:00:09.8]} 69. Rh7 {[%clk 0:00:08.9]} 69...
Rg7+ {[%clk 0:00:09]} 70. Rxg7 {[%clk 0:00:05.8]} 1/2-1/2

[Event "*** Biggest EVER Titled Tuesday"]
[Site "Chess.com"]
[Date "2018.04.17"]
[Round "7"]
[White "Margency"]
[Black "daro94"]
[Result "0-1"]
[WhiteElo "2571"]
[BlackElo "2723"]
[TimeControl "180+2"]
[EndTime "14:40:16 PDT"]
[Termination "daro94 won by resignation"]

1. e4 {[%clk 0:03:01.9]} 1... c5 {[%clk 0:02:59.6]} 2. Nf3 {[%clk 0:03:02.4]}
2... d6 {[%clk 0:03:01.1]} 3. d4 {[%clk 0:03:03]} 3... cxd4 {[%clk 0:03:03]} 4.
Nxd4 {[%clk 0:03:04.5]} 4... Nf6 {[%clk 0:03:04.7]} 5. Nc3 {[%clk 0:03:05.8]}
5... a6 {[%clk 0:03:06.4]} 6. g3 {[%clk 0:03:05.2]} 6... e5 {[%clk 0:03:05.8]}
7. Nb3 {[%clk 0:03:06.6]} 7... Be7 {[%clk 0:03:06.9]} 8. Bg2 {[%clk 0:03:07.7]}
8... O-O {[%clk 0:03:06.6]} 9. O-O {[%clk 0:03:08.8]} 9... Be6 {[%clk
0:03:07.1]} 10. a4 {[%clk 0:03:08.4]} 10... Nbd7 {[%clk 0:03:07.9]} 11. Re1
{[%clk 0:03:05.2]} 11... Rc8 {[%clk 0:03:08.5]} 12. Nd2 {[%clk 0:03:05.5]} 12...
Qa5 {[%clk 0:02:20.6]} 13. Nf1 {[%clk 0:03:01.2]} 13... Rfe8 {[%clk 0:01:57.2]}
14. Bd2 {[%clk 0:03:01.2]} 14... Qc7 {[%clk 0:01:56.2]} 15. Ne3 {[%clk
0:03:00.2]} 15... g6 {[%clk 0:01:55]} 16. a5 {[%clk 0:02:56.9]} 16... Bf8 {[%clk
0:01:53.3]} 17. h3 {[%clk 0:02:36.8]} 17... h5 {[%clk 0:01:48.9]} 18. Re2 {[%clk
0:02:35.8]} 18... Nb8 {[%clk 0:01:43.4]} 19. Be1 {[%clk 0:02:35.2]} 19... Nc6
{[%clk 0:01:40]} 20. Ncd5 {[%clk 0:02:33]} 20... Bxd5 {[%clk 0:01:40.5]} 21.
exd5 {[%clk 0:02:26]} 21... Nd4 {[%clk 0:01:28]} 22. Rd2 {[%clk 0:02:26]} 22...
Bh6 {[%clk 0:01:29.2]} 23. c3 {[%clk 0:02:20.5]} 23... Nf5 {[%clk 0:01:07.1]}
24. Nxf5 {[%clk 0:02:19.2]} 24... gxf5 {[%clk 0:01:08.5]} 25. Rc2 {[%clk
0:02:12.9]} 25... Qc4 {[%clk 0:00:58.8]} 26. Re2 {[%clk 0:01:48.4]} 26... e4
{[%clk 0:00:55.2]} 27. Bd2 {[%clk 0:01:43.3]} 27... Bg7 {[%clk 0:00:51]} 28. Bf4
{[%clk 0:01:43.1]} 28... Nxd5 {[%clk 0:00:43.1]} 29. Rd2 {[%clk 0:01:24.1]}
29... Nxf4 {[%clk 0:00:43.2]} 30. gxf4 {[%clk 0:01:24.6]} 30... Rcd8 {[%clk
0:00:20.6]} 31. Qxh5 {[%clk 0:01:22.7]} 31... Qe6 {[%clk 0:00:21.8]} 32. h4
{[%clk 0:01:15.3]} 32... Qg6 {[%clk 0:00:22]} 33. Qxg6 {[%clk 0:01:04.7]} 33...
fxg6 {[%clk 0:00:23.9]} 34. Rd5 {[%clk 0:01:06]} 34... Bh6 {[%clk 0:00:20.3]}
35. h5 {[%clk 0:01:05.5]} 35... Kg7 {[%clk 0:00:17.9]} 36. hxg6 {[%clk
0:01:05.5]} 36... Kxg6 {[%clk 0:00:19.3]} 37. Bh3 {[%clk 0:01:06.1]} 37... Rf8
{[%clk 0:00:20.7]} 38. Kh1 {[%clk 0:01:03.6]} 38... Bxf4 {[%clk 0:00:19.1]} 39.
Rg1+ {[%clk 0:01:04.1]} 39... Bg5 {[%clk 0:00:17.5]} 40. f4 {[%clk 0:01:01.9]}
40... exf3 {[%clk 0:00:18.4]} 41. Rf1 {[%clk 0:00:58.5]} 41... Be3 {[%clk
0:00:07.3]} 42. Rxf3 {[%clk 0:00:58.3]} 42... f4 {[%clk 0:00:08.7]} 43. Kg2
{[%clk 0:00:56.7]} 43... Rf6 {[%clk 0:00:08]} 44. Kf1 {[%clk 0:00:57.4]} 44...
Rh8 {[%clk 0:00:08.2]} 45. Ke2 {[%clk 0:00:58.1]} 45... Kf7 {[%clk 0:00:08.9]}
46. Kd3 {[%clk 0:00:57.7]} 46... Ke7 {[%clk 0:00:08]} 47. b4 {[%clk 0:00:58]}
47... Rg6 {[%clk 0:00:07.5]} 48. Bf5 {[%clk 0:00:59]} 48... Rg1 {[%clk 0:00:08]}
49. Be4 {[%clk 0:00:59.3]} 49... Rc8 {[%clk 0:00:05]} 50. Rh3 {[%clk 0:00:51.4]}
50... Rd1+ {[%clk 0:00:05.7]} 51. Ke2 {[%clk 0:00:49.4]} 51... Rxd5 {[%clk
0:00:05.2]} 52. Bxd5 {[%clk 0:00:50.3]} 52... Rxc3 {[%clk 0:00:06.8]} 53. Rh7+
{[%clk 0:00:51.1]} 53... Kf6 {[%clk 0:00:07.7]} 54. Rxb7 {[%clk 0:00:51.1]}
54... Ke5 {[%clk 0:00:05.2]} 55. Bf7 {[%clk 0:00:52.1]} 55... Rc2+ {[%clk
0:00:05.8]} 56. Kd3 {[%clk 0:00:40.1]} 56... Rd2+ {[%clk 0:00:07.1]} 57. Kc3
{[%clk 0:00:41.3]} 57... d5 {[%clk 0:00:05]} 58. Re7+ {[%clk 0:00:33.8]} 58...
Kf6 {[%clk 0:00:05.5]} 59. Rd7 {[%clk 0:00:34.9]} 59... d4+ {[%clk 0:00:06.4]}
60. Kb3 {[%clk 0:00:35.9]} 60... f3 {[%clk 0:00:06]} 61. Bc4 {[%clk 0:00:36.9]}
61... f2 {[%clk 0:00:05.3]} 62. Bxa6 {[%clk 0:00:32.7]} 62... d3 {[%clk
0:00:03.7]} 63. Rxd3 {[%clk 0:00:32.5]} 63... f1=Q {[%clk 0:00:03.3]} 64. Rd6+
{[%clk 0:00:26.6]} 64... Rxd6 {[%clk 0:00:04.2]} 65. Bxf1 {[%clk 0:00:28.5]}
65... Ke5 {[%clk 0:00:05.7]} 66. Kc4 {[%clk 0:00:28.8]} 66... Rd4+ {[%clk
0:00:06.3]} 67. Kc3 {[%clk 0:00:28]} 67... Bd2+ {[%clk 0:00:07.6]} 68. Kb3
{[%clk 0:00:28.1]} 68... Bxb4 {[%clk 0:00:09.5]} 69. a6 {[%clk 0:00:29.3]} 69...
Bc5 {[%clk 0:00:10.8]} 70. Bc4 {[%clk 0:00:29.8]} 70... Ba7 {[%clk 0:00:12.7]}
71. Kb4 {[%clk 0:00:30.9]} 71... Kd6 {[%clk 0:00:14.6]} 72. Kb5 {[%clk
0:00:32.2]} 72... Kc7 {[%clk 0:00:16.3]} 73. Bb3 {[%clk 0:00:31.7]} 73... Rd6
{[%clk 0:00:18.2]} 74. Bc4 {[%clk 0:00:32.3]} 74... Rb6+ {[%clk 0:00:20.1]} 75.
Ka5 {[%clk 0:00:31.3]} 75... Rh6 {[%clk 0:00:22]} 76. Kb4 {[%clk 0:00:32.5]}
76... Rh4 {[%clk 0:00:23.2]} 77. Kc3 {[%clk 0:00:33.6]} 77... Kb6 {[%clk
0:00:23.9]} 0-1